Cogmind - Beta 16 @@@ ROGUE MODE // 2025.12.18 @ 00:00:11 Player: mephiles96 Result: Destroyed by S-10 Pest with Light Assault Rifle Performance ------------- Evolutions (1) 500 Regions Visited (3) 600 Robots Destroyed (29) 145 Value Destroyed (563) 563 Prototype IDs (0) 0 Alien Tech Used (0) 0 Bonus (-146) -146 TOTAL SCORE: 1662 Bonus ------- Friendly Fire -146 Cogmind --------- Core Integrity 0/400 Matter 33/300 Energy 100/100 System Corruption 0% Temperature Cool (0) Movement Core (350) Ox6 Location -9/Mines Parts ------- > --- POWER (1) -------- (None) > --- PROPULSION (3) --- (None) > --- UTILITY (3) ------ Large Storage Unit Visual Processing Unit Core Shielding > --- WEAPON (2) ------- (None) > --- INVENTORY (15) --- Ion Engine Huge Storage Unit Improved Signal Interpreter Terrain Scan Processor Transport Network Coupler Field Recycling Unit (0) Medium Laser Medium Laser Spread Laser Peak State ------------ > --- POWER ------------ Ion Engine > --- PROPULSION ------- Aluminum Leg Aluminum Leg Improved Aluminum Leg > --- UTILITY ---------- Large Storage Unit Visual Processing Unit Signal Interpreter > --- WEAPON ----------- Particle Cannon Missile Launcher > --- INVENTORY -------- Ion Engine Aluminum Leg Aluminum Leg Improved Aluminum Leg Huge Storage Unit Improved Signal Interpreter Terrain Scan Processor Transport Network Coupler Core Shielding Tractor Beam Field Recycling Unit Medium Laser Medium Laser Spread Laser Missile Launcher [Rating: 16] Favorites ----------- Power Ion Engine Engine Ion Engine Power Core Fission Core Propulsion Aluminum Leg Leg Aluminum Leg Utility Tractor Beam Device Tractor Beam Storage Large Storage Unit Processor Signal Interpreter Protection Core Shielding Weapon Medium Laser Energy Gun Medium Laser Energy Cannon Particle Cannon Ballistic Gun Assault Rifle Launcher Mini Grenade Launcher Build | -11 -10 -9 -9 ------- Run | Yrd Mat Mat Min Slots Evolved 2 | . . 2 . Power . | . . . . Propulsion 1 | . . 1 . Utility 1 | . . 1 . Weapon . | . . . . Parts Attached 25 | 7 4 9 5 Power 3 | 1 . 1 1 Engine 2 | 1 . 1 . Core 1 | . . . 1 Reactor . | . . . . Propulsion 9 | 2 2 3 2 Treads . | . . . . Leg 9 | 2 2 3 2 Wheel . | . . . . Hover . | . . . . Flight . | . . . . Utility 7 | 2 2 3 . Device 1 | 1 . . . Storage 3 | 1 2 . . Processor 2 | . . 2 . Hackware . | . . . . Protection 1 | . . 1 . Artifact . | . . . . Weapon 6 | 2 . 2 2 Energy Gun 1 | 1 . . . Energy Cannon 1 | . . 1 . Ballistic Gun 1 | 1 . . . Ballistic Cannon . | . . . . Launcher 3 | . . 1 2 Special Weapon . | . . . . Impact Weapon . | . . . . Slashing Weapon . | . . . . Piercing Weapon . | . . . . Special Melee Weapon . | . . . . Unidentified Prototypes . | . . . . Parts Lost 14 | . . 2 12 Power 2 | . . . 2 Propulsion 7 | . . 1 6 Utility 1 | . . . 1 Weapon 4 | . . 1 3 Highest Loss Streak 8 | . . 2 8 To Critical Strikes . | . . . . Average Backups 9 | 4 7 12 11 Power 1 | . 1 1 1 Propulsion 3 | 2 3 3 1 Utility 3 | . 2 5 5 Weapon 1 | 1 1 2 3 Tool/Special . | . . . . Unused Backups 11 | . 6 . 5 Power . | . . . . Propulsion 4 | . 4 . . Utility 5 | . 2 . 3 Weapon 2 | . . . 2 Tool/Special . | . . . . Average Slot Usage (%) 94 | . 99 98 74 Engine 11 | . 14 11 4 Leg 28 | . 27 32 24 Device 10 | . 14 8 1 Storage 12 | . 14 11 11 Processor 5 | . . 12 13 Protection 1 | . . . 5 Energy Gun 10 | . 14 9 1 Energy Cannon 1 | . . 1 4 Ballistic Gun 9 | . 13 8 . Launcher 1 | . . 1 2 Peak Build Rating 16 | 7 7 14 16 Average Rating 8 | 5 6 11 12 On Entrance 7 | . 7 7 14 Avg Prop Armor Cover (%) . | . . . . Naked Turns . | . . . . Heaviest Build 90 | 15 90 32 36 Greatest Support 36 | 20 20 33 36 Greatest Overweight (x) 9 | . 9 . 6 Average Overweight (x) . | . . . . Largest Inventory Capacity 25 | 8 25 15 15 Average Capacity 11 | 7 9 15 15 Most Carried 15 | 7 10 15 15 Average Carried 9 | 4 7 12 11 Final Capacity 15 | 8 15 15 15 Final Carried 15 | 6 9 15 9 Class Distribution -------------------- 100% | Mutant Dominant Class ---------------- Mutant | -10/Materials Mutant | -9/Materials Mutant | -9/Mines Resources | -11 -10 -9 -9 ----------- Run | Yrd Mat Mat Min Matter Collected 621 | 294 42 169 116 Remotely 407 | 116 42 137 112 Salvage Created 524 | 87 168 200 69 Parts 45 | 1 11 29 4 Haulers Intercepted 2 | . . 2 . Recyclers Shooed 2 | . . 1 1 Parts Field Recycled . | . . . . Retrieved Matter . | . . . . Parts Self-Destructed . | . . . . Prevented . | . . . . Parts Restored . | . . . . Kills | -11 -10 -9 -9 ------- Run | Yrd Mat Mat Min Combat Hostiles Destroyed 22 | . 4 12 6 Guns 5 | . 4 1 . AOE 17 | . . 11 6 Classes Destroyed 12 | 1 1 7 3 Worker 2 | . . 1 1 Builder 4 | . . 3 1 Hauler 2 | . . 2 . Recycler 1 | 1 . . . Watcher 1 | . . 1 . Swarmer 8 | . . 8 . Grunt 6 | . 4 2 . Duelist 1 | . . 1 . Sentry 1 | . . 1 . Demolisher 2 | . . . 2 Assembled 4 | . . . 4 Guerrilla 1 | . . . 1 Best Kill Streak 14 | 1 3 14 5 Combat Bots Only 7 | . 3 7 4 Max Kills in Single Turn 3 | 1 1 3 2 Gunslinging . | . . . . Exploded 2 | . . 2 1 Melee . | . . . . Uniques/NPCs Destroyed . | . . . . Combat | -11 -10 -9 -9 -------- Run | Yrd Mat Mat Min Hostile Shots Fired 151 | . 19 36 96 Missed 42 | . 2 15 25 Hits 109 | . 17 21 71 Melee 8 | . . 5 3 Projectile 101 | . 17 16 68 AOE 8 | . . . 8 Critical Strikes 5 | . 3 2 . Damage Taken 2051 | . 218 591 1242 Core 410 | . 10 115 285 Absorbed by Shields . | . . . . Redirected to Shielding 42 | . . 6 36 Regen/Repaired (Parts) 180 | . 180 . . Core Remaining (%) 98 | 100 96 . . Volleys Fired 53 | 8 14 22 9 Largest 2 | 2 2 2 1 Hottest 70 | 70 70 70 36 Shots Fired 80 | 16 28 27 9 Gun 54 | 16 28 10 . Cannon . | . . . . Launcher 26 | . . 17 9 Special . | . . . . Kinetic 27 | 8 14 5 . Thermal 27 | 8 14 5 . Explosive 26 | . . 17 9 Electromagnetic . | . . . . Robot Hit Streak 10 | 4 7 10 2 Robot Miss Streak 3 | 3 1 2 1 Penetration Max . | . . . . Secondary Targets . | . . . . Shots Hit Robots 49 | 8 20 16 5 Core Hits 50 | 2 9 23 16 Critical Kills . | . . . . Critical Parts Destroyed . | . . . . Critical Strikes 3 | 1 1 1 . Burn 3 | 1 1 1 . Melee Attacks . | . . . . Impact . | . . . . Slashing . | . . . . Piercing . | . . . . Sneak Attacks . | . . . . Combat Hostiles . | . . . . Follow-up Attacks . | . . . . Damage Inflicted 2295 | 98 250 1399 548 Guns 467 | 98 250 119 . Cannons . | . . . . Explosions 1827 | . . 1280 547 Melee . | . . . . Ramming 1 | . . . 1 Kinetic 228 | 47 126 55 . Thermal 239 | 51 124 64 . Explosive 1827 | . . 1280 547 Electromagnetic . | . . . . Impact . | . . . . Slashing . | . . . . Piercing . | . . . . Highest Corruption 2 | . 2 . . Average Corruption 2 | . 2 . . Corruption Purged . | . . . . Corruption Blocked . | . . . . Effects 4 | . 4 . . Message Errors 2 | . 2 . . Matter Fused 2 | . 2 . . Overload Shots . | . . . . Overflow Damage 137 | . . 108 29 Projectiles . | . . . . Explosions 137 | . . 108 29 Melee . | . . . . Knockbacks . | . . . . Impact . | . . . . Kinetic . | . . . . Secondary . | . . . . Self-Inflicted Damage 532 | . . 237 295 Shots 14 | . . 6 8 Rammed . | . . . . Targets Rammed 2 | . . . 2 Kicked 2 | . . . 2 Crushed . | . . . . Highest Temperature 300 | 72 300 27 . Average Temperature 112 | 37 169 17 . Received Heat Transfer 252 | . 183 69 . Siege Activations . | . . . . Martial Activations . | . . . . Shielding Activations . | . . . . Robots Disrupted . | . . . . Combat Hostiles . | . . . . Robots Corrupted . | . . . . Combat Hostiles . | . . . . Parts Fried . | . . . . Impact Corruptions . | . . . . Robots Melted . | . . . . Combat Hostiles . | . . . . Parts Melted 4 | . 2 2 . Heat Transferred 925 | 222 444 259 . Parts Sabotaged . | . . . . Parts Stolen . | . . . . Parts Stripped . | . . . . Power Chain Reactions . | . . . . Alert | -11 -10 -9 -9 ------- Run | Yrd Mat Mat Min Maximum Alert Level 1 | . . 1 . Low Security (%) 90 | 100 100 67 100 Level 1 9 | . . 32 . Level 2 . | . . . . Level 3 . | . . . . Level 4 . | . . . . Level 5 . | . . . . High Security . | . . . . Max Security . | . . . . Peak Influence 350 | 5 70 350 136 Initial 117 | . . . 117 Average 57 | . 11 139 83 Influence Increases 641 | 5 97 443 96 Destroy 0b10 Robot/C 360 | . 80 240 40 Destroy 0b10 Robot/NC 50 | 5 . 35 10 Destroy Leader 66 | . 10 46 10 Successful Hack 7 | . 7 . . Disable Machine 30 | . . 30 . Destroy Structure 128 | . . 92 36 Influence Decreases 638 | 5 97 140 396 Entered New Map 186 | . . . 186 Time Decay 312 | 5 97 120 90 Lost Part 140 | . . 20 120 Squads Dispatched . | . . . . Investigation . | . . . . Extermination . | . . . . Reinforcement . | . . . . Assault . | . . . . Garrison . | . . . . Intercept . | . . . . Searches Triggered . | . . . . Construction Impeded . | . . . . Haulers Reinforced . | . . . . Active Scanning Responses . | . . . . Cargo Convoy Interrupts . | . . . . Stealth | -11 -10 -9 -9 --------- Run | Yrd Mat Mat Min Distress Signals 1 | . . 1 . Communications Jammed . | . . . . Distress Signals . | . . . . Times Spotted 40 | . 5 16 19 Peak Tracking Total 6 | . 4 5 6 Tactical Retreats 2 | . . . 2 Traps | -11 -10 -9 -9 ------- Run | Yrd Mat Mat Min Traps Triggered 2 | . 2 . . Indirectly . | . . . . Trap Hack Attempts . | . . . . Triggered . | . . . . Disarmed . | . . . . Reprogrammed . | . . . . Reused . | . . . . Traps Extracted . | . . . . Installed . | . . . . Triggered . | . . . . Machines | -11 -10 -9 -9 ---------- Run | Yrd Mat Mat Min Machines Disabled 2 | . . 2 . Max in Single Turn 1 | . . 1 . Machines Repaired . | . . . . Machines Dismantled . | . . . . Machines Sabotaged . | . . . . Overloaded Fab Kills . | . . . . Hacking | -11 -10 -9 -9 --------- Run | Yrd Mat Mat Min Machines Accessed 7 | . 6 1 . Terminals 6 | . 5 1 . Fabricators . | . . . . Repair Stations 1 | . 1 . . Recycling Units . | . . . . Scanalyzers . | . . . . Garrison Access . | . . . . Total Hacks 20 | . 19 1 . Successful 11 | . 11 . . Failed 9 | . 8 1 . Catastrophic 3 | . 2 1 . Database Lockouts . | . . . . Manual 11 | . 10 1 . Terminals 11 | . 10 1 . Fabricators . | . . . . Repair Stations 9 | . 9 . . Recycling Units . | . . . . Scanalyzers . | . . . . Garrison Access . | . . . . Terminal Hacks 2 | . 2 . . Patrol Status 1 | . 1 . . Zone Layout 1 | . 1 . . Fabricator Hacks . | . . . . Repair Station Hacks 9 | . 9 . . Scan Component 5 | . 5 . . Repair 4 | . 4 . . Recycling Unit Hacks . | . . . . Scanalyzer . | . . . . Garrison Access Hacks . | . . . . Unauthorized Hacks . | . . . . Terminals . | . . . . Fabricators . | . . . . Repair Stations . | . . . . Recycling Units . | . . . . Scanalyzers . | . . . . Garrison Access . | . . . . Data Cores Recovered . | . . . . Used . | . . . . Hacking Detections 7 | . 6 1 . Full Trace Events . | . . . . Feedback Events . | . . . . Feedback Blocked . | . . . . Robot Schematics Acquired . | . . . . Robots Built . | . . . . Authchips . | . . . . Time . | . . . . Total Robot Build Rating . | . . . . Part Schematics Acquired . | . . . . Parts Built . | . . . . Authchips . | . . . . Time . | . . . . Total Part Build Rating . | . . . . Part Studies Acquired . | . . . . Parts Repaired 4 | . 4 . . Time 104 | . 104 . . Parts Recycled . | . . . . Recycled Matter . | . . . . Retrieved Matter . | . . . . Retrieved Components . | . . . . Parts Scanalyzed . | . . . . Part Schematics Acquired . | . . . . Parts Damaged . | . . . . Bothacking | -11 -10 -9 -9 ------------ Run | Yrd Mat Mat Min Used RIF Installer . | . . . . Robots Hacked . | . . . . Non-combat . | . . . . Combat . | . . . . Robot Hacks Applied . | . . . . Relay Couplers Released . | . . . . Fabnet Peak Effective % . | . . . . Robots Rewired . | . . . . Allies Hacked . | . . . . Hacks Repelled . | . . . . Allies | -11 -10 -9 -9 -------- Run | Yrd Mat Mat Min Total Allies . | . . . . Largest Group . | . . . . Highest-Rated Group . | . . . . Highest-Rated Ally . | . . . . Total Orders . | . . . . Ally Attacks . | . . . . Total Damage . | . . . . Kills . | . . . . Allies Corrupted . | . . . . Allies Melted . | . . . . Intel | -11 -10 -9 -9 ------- Run | Yrd Mat Mat Min Active Infowar (turns) 238 | . . 57 181 Optics 238 | . . 57 181 Robot Analysis Total . | . . . . Derelict Logs Recovered . | . . . . Drone Launches . | . . . . Drone Recoveries . | . . . . Exploration | -11 -10 -9 -9 ------------- Run | Yrd Mat Mat Min Turns Passed 1227 | 111 592 343 181 Spaces Moved 639 | 60 287 202 90 Core 12 | 8 1 . 3 Treads . | . . . . Legs 627 | 52 286 202 87 Wheels . | . . . . Hover . | . . . . Flight . | . . . . Fastest Speed 50 | 50 120 120 120 Average Speed 134 | 110 138 120 165 Slowest Speed 500 | 120 500 120 350 Overloaded Moves . | . . . . Propulsion Burnouts . | . . . . Robots Hopped . | . . . . Potential Cave-ins . | . . . . Cave-ins Triggered 1 | . . . 1 Exploration Rate (%) 24 | 5 46 20 28 Regions Visited 3 Branch Regions 1 Pre-discovered Areas . | . . . . Known Exits Taken 1 | . . 1 . Unknown Exits Taken 2 | 1 1 . . Scrap Searched . | . . . . Spaces Dug . | . . . . Terrain Destroyed 180 | . . 116 64 Melee . | . . . . Projectile . | . . . . AOE 180 | . . 116 64 Terrain Rammed . | . . . . Walls Destroyed . | . . . . Machines Disabled . | . . . . Actions | -11 -10 -9 -9 --------- Run | Yrd Mat Mat Min Total 926 | 88 455 272 111 Wait 144 | 1 125 18 . Move 636 | 59 286 201 90 Hop . | . . . . Pick Up 43 | 13 16 13 1 Fast Attach . | . . . . Attach 22 | 7 5 4 6 Detach . | . . . . Swap 16 | . 2 11 3 Drop 10 | . 7 3 . Fire 53 | 8 14 22 9 Melee . | . . . . Ram . | . . . . Kick 2 | . . . 2 Crush . | . . . . Escape Stasis . | . . . . Rewire . | . . . . Trap . | . . . . Miscellaneous . | . . . . Route ------- -11/Scrapyard -10/Materials -9/Materials -9/Mines History --------- Turn | Location | Event 4 | -11/Scrapyard | Discovered new exit (range 15) 112 | -11/Scrapyard | Entered Materials 328 | -10/Materials | Build established: Mutant 331 | -10/Materials | Repaired Aluminum Leg 358 | -10/Materials | Repaired Aluminum Leg 386 | -10/Materials | Repaired Assault Rifle 413 | -10/Materials | Repaired Aluminum Leg 580 | -10/Materials | Discovered new exit (range 3) 704 | -10/Materials | Entered another Materials area 704 | -9/Materials | Evolved 2 slots: Propulsion x1, Utility x1 983 | -9/Materials | Destroyed 7 combat bots 1008 | -9/Materials | Discovered new exit (range 18) 1045 | -9/Materials | Identified exit to Mines 1047 | -9/Materials | Entered Mines 1048 | -9/Mines | Assembled infested the area 1053 | -9/Mines | Assisted by a Guerilla fighting off Assembled 1107 | -9/Mines | Core integrity fell below 50% 1109 | -9/Mines | Crushed by falling debris 1141 | -9/Mines | Lost 8 parts (1p3n1u3w) 1221 | -9/Mines | Core integrity fell below 20% 1228 | -9/Mines | Destroyed by S-10 Pest with Light Assault Rifle Last Messages --------------- 01124_ Acquired 4 matter. 01140_ The unstable cave ceiling collapses. 01140_ Kicked R-06 Scavenger. 01142_ The unstable cave ceiling collapses. 01159_ Knocked back. 01165_ K-01 Serf collects debris. 01174_ as-24627 sneak attacks. 01174_ K-01 Serf knocked back. 01174_ Imp. Aluminum Leg destroyed. 01180_ S-10 Pest destroyed. 01181_ as-81173 destroyed. 01183_ S-10 Pest destroyed. 01188_ as-24627 destroyed. 01188_ S-10 Pest destroyed. 01194_ T-07 Excavator is excavating. 01197_ U-05 Engineer builds a Wall. 01205_ Imp. Aluminum Leg destroyed. 01211_ as-02125 destroyed. 01213_ Fission Core destroyed. 01218_ Aluminum Leg destroyed. Map ----- +----------------------------------------------------+ | ????????????????????????????????????????????? | | ????????????????????????????????????????????? | | ????????????????????????????????????????????? | | ????????????????????????????????????????????? | | ????????????????????????????????????????????? | | ????????????????????????????????????????????? | | ????????????????????????????????????????????? | | ????????????????????????????????????????????? | | ????????????????????????????????????????????? | | ????????????????????????????????????????????? | | ????????????????????????????????????????????? | | ????????????????????????????????????????????? | | ????????????????????????????????????????????? | | ????????????????????????????????????????????? | | ????????????????????????????????????????????? | | ????????????????????????????????????????????? | | ????????????????????????????????????????????? | | ???????????????????????#####????????????????? | | ??????????????????????## ????????????????? | | ??????????????????????# ????????????????? | | ??????????????????????? ?????????????????? | | ??????????????????????? ?????????????????? | | ???????????????????????? ?????????????????? | | ???????????????????????? #?????????????????? | | ????????????????????????# #?????????????????? | | ????????????????????????#@#?????"" ?????????? | | ???????????????????????##s#### """ """ #????? | | ??????????????????????## #????? | | ???????????????????#### s #????? | | #?????????????????## ss ## #????? | | #????????########## #??#########????? | | #????????# #???????????????? | | ?????????# % k ##???????????????? | | ????###### ### ## ### #????????????????? | | ???## #?# ### ##?# #???????????????? | | #### #?# #?####?? ??????????????? | | % #?# ??????? #????????????? | | ##?# ??????? #????????????? | | * [ #??####??????## #????????????? | | % % #?????????????? # ##????????????? | | ##[%* #????????????? ## #?????????????? | | ?##[% #????????????? #? #?????????????? | | ??#### #????????????? #? #?????????????? | | ?????## #???????????? #??#?????????????? | | ??????# ??????????? ?????????????????? | | ??????# ???????????????????????????? | | ??????# ???????????????????????????? | | ??????# ??????????????????????????? | | ??????## #??????????????????????????? | | ????????# ######???????????????????????????? | +----------------------------------------------------+ Best States ------------- Heat Dissipation 28 Energy Generation 18 Energy Capacity 310 Matter Stores 300 Matter Capacity 300 Sight Range 18 Terrain Scan Density 10 Core Shielding 20 Evasion (%) 55 Item Schematics ----------------- None Robot Schematics ------------------ None Fabricated ------------ Nothing Repaired ---------- Aluminum Leg | 35% | -10/Materials Aluminum Leg | 57% | -10/Materials Assault Rifle | 45% | -10/Materials Aluminum Leg | 67% | -10/Materials Studied --------- None Alien Tech Used ----------------- None Achievements -------------- Unlikely Earthworm Challenges ------------ None Game ------ Seed CoilBurstNeutralizer Manual? 0 Play Time 00:18:03 Cumulative 21.1 hours Start 2025.12.17 @ 23:45:06 End 2025.12.18 @ 00:00:11 Sessions 1 Manual Loads 0 Difficulty Rogue Special Mode None Game No. 24 Rogue 24 Adventurer 0 Explorer 0 Win Type - Total 0 Types 0/0/0/0/0/0/0/0/0/0 Lore% 13 Gallery% 24 Achievement% 19 Wizard Run 0 Options --------- Layout 1 ASCII 0 Keyboard 0 Movement Numpad Keybinds 1 Fullscreen 1 Font 24/Smallcaps Map View 50x35 Zoom Use 0% Tactical HUD 1 Map Filters NONE Filters NONE Steam 1 RUN: 94c4de6d-b996-4955-9b61-dd02cfcf6d69